bitfinex-derivatives/quotes_SOLF0:USTF0_20240910
["timestamp","ask_amount","ask_price","bid_price","bid_amount"]
[1725963846222,3.716,134.55,134.53,13.2441]
[1725963847420,3.7161,134.54,134.53,11.8662]
[1725963848415,3.716,134.55,134.53,11.8662]
[1725963850519,3.716,134.55,134.53,2.7262]
[1725963850725,3.716,134.55,134.54,9.14]
[1725963853927,9.14,134.59,134.51,3.7169]
[1725963854127,9.14,134.59,134.48,1.3663]
[1725963854128,9.14,134.56,134.49,2.6579]
[1725963854317,9.14,134.56,134.5,9.14]
[1725963855624,9.14,134.56,134.51,3.7169]
[1725963855820,9.14,134.57,134.52,9.14]
[1725963856021,3.7162,134.54,134.52,9.14]
[1725963860128,3.7164,134.53,134.52,9.14]
[1725963860825,3.7167,134.52,134.49,6.3752]
[1725963861030,3.7167,134.52,134.5,9.14]
[1725963862424,3.7167,134.52,134.5,12.8572]
[1725963862823,3.7167,134.52,134.51,9.14]
[1725963864131,3.7167,134.52,134.5,3.7172]
[1725963864330,3.7167,134.52,134.51,9.14]
[1725963870530,3.7166,134.53,134.51,12.857]
[1725963874133,3.7163,134.54,134.52,3.7167]
[1725963874330,3.7163,134.54,134.53,9.14]
[1725963874632,3.7166,134.53,134.49,2.6579]
[1725963874839,3.7166,134.53,134.52,9.14]
[1725963877334,9.14,134.53,134.46,6.04320795]
[1725963877537,9.14,134.53,134.47,9.14]
[1725963877935,3.7171,134.51,134.48,3.7177]
[1725963878338,3.7173,134.5,134.47,16.51160315]
[1725963879142,3.7173,134.5,134.49,9.14]
[1725963885240,3.7173,134.5,134.48,12.8578]
[1725963885742,3.7173,134.5,134.49,9.14]
[1725963885947,7.4309,134.57,134.49,9.14]
[1725963885948,3.7168,134.52,134.49,9.14]
[1725963886148,16.5709,134.57,134.51,9.14]
[1725963886447,3.7169,134.52,134.5,9.14]
[1725963887446,3.717,134.51,134.5,9.14]
[1725963891664,3.7165,134.53,134.5,9.14]
[1725963891856,3.7165,134.53,134.52,9.14]
[1725963896251,3.7163,134.54,134.52,9.14]
[1725963902161,3.7164,134.53,134.52,9.14]
[1725963902358,9.14,134.54,134.44,3.9316]
[1725963902559,9.14,134.54,134.45,6.0442875]
[1725963902758,3.69339131,134.55,134.46,15.29837176]
[1725963902759,9.14,134.52,134.46,15.29837176]
[1725963902955,9.14,134.5,134.44,10.4551]
[1725963903164,3.7184,134.46,134.44,1.3151]
[1725963903761,7.4327,134.54,134.45,9.14]
[1725963903963,9.14,134.52,134.45,9.14]
[1725963904159,9.14,134.52,134.46,9.14]
[1725963904663,3.7177,134.49,134.46,9.14]
[1725963904867,3.7177,134.49,134.46,12.8583]
[1725963905269,3.7177,134.49,134.46,9.14]
[1725963906263,3.7177,134.49,134.46,12.8583]
[1725963906569,3.7178,134.48,134.46,9.14]
[1725963907170,3.7177,134.49,134.46,12.8583]
[1725963907366,116.8529856,134.57,134.46,9.14]
[1725963907562,1.11814345,134.56,134.49,9.14]
[1725963907769,3.7172,134.51,134.49,9.14]
[1725963914272,113.1540174,134.57,134.5,9.14]
[1725963914467,113.1540174,134.57,134.46,1.3455]
[1725963914468,122.2940174,134.57,134.51,9.14]
[1725963916171,3.7164,134.53,134.51,9.14]
[1725963920066,3.7162,134.54,134.51,9.14]
[1725963920274,7.4276,134.63,134.53,9.14]
[1725963920575,9.14,134.6,134.54,9.14]
[1725963922076,3.7159,134.55,134.54,9.14]
[1725963923982,3.7157,134.56,134.54,9.14]
[1725963924375,9.14,134.6,134.54,9.14]
[1725963924571,3.7155,134.57,134.54,9.14]
[1725963925173,9.14,134.6,134.54,9.14]
[1725963925174,3.7156,134.56,134.54,9.14]
[1725963926072,3.7154,134.57,134.55,9.14]
[1725963926278,7.4276,134.63,134.55,9.14]
[1725963926482,10.25820091,134.62,134.55,9.14]
[1725963926678,3.7153,134.58,134.55,9.14]
[1725963927377,175.85499443,134.72,134.55,12.8558]
[1725963927578,9.14,134.62,134.56,9.14]
[1725963927780,1.11821956,134.61,134.53,6.15643595]
[1725963927979,1.11821956,134.61,134.56,9.14]
[1725963928281,10.25821956,134.61,134.56,9.14]
[1725963928479,3.7152,134.58,134.56,9.14]
[1725963930279,11.20300428,134.67,134.52,2.7111]
[1725963930280,9.14,134.59,134.52,2.7111]
[1725963930487,9.14,134.59,134.53,9.14]
[1725963930685,9.14,134.59,134.53,12.8563]
[1725963931077,9.14,134.59,134.53,9.14]
[1725963931488,9.14,134.59,134.52,2.7111]
[1725963931489,7.4266,134.65,134.54,9.14]
[1725963931787,9.14,134.61,134.54,9.14]
[1725963931978,3.7154,134.57,134.54,9.14]
[1725963935181,3.7154,134.57,134.54,12.856]
[1725963935382,3.7154,134.57,134.56,9.14]
[1725963935980,3.77760428,134.67,134.56,9.14]
[1725963936179,9.14,134.63,134.57,9.14]
[1725963936680,113.06787183,134.68,134.57,9.14]
[1725963936681,3.7148,134.59,134.57,9.14]
[1725963937290,3.7146,134.6,134.57,9.14]
[1725963938694,3.7148,134.59,134.57,9.14]
[1725963943492,3.7146,134.6,134.57,9.14]
[1725963943684,9.14,134.63,134.57,9.14]
[1725963943886,3.7147,134.6,134.57,9.14]
[1725963944089,3.7147,134.6,134.59,9.14]
[1725963944486,9.14,134.63,134.52,2.7111]
[1725963944702,9.14,134.63,134.57,9.14]
[1725963944891,3.715,134.59,134.57,9.14]
[1725963945195,3.715,134.59,134.52,2.7111]
[1725963945196,9.14,134.61,134.53,3.7164]
[1725963945391,116.77456432,134.68,134.53,3.7164]
[1725963945392,3.716,134.55,134.53,9.14]
[1725963945696,9.14,134.58,134.53,9.14]
[1725963946493,3.7159,134.56,134.53,9.14]
[1725963946698,9.14,134.58,134.53,9.14]
[1725963948003,3.7158,134.56,134.53,9.14]
[1725963948396,3.7158,134.56,134.53,12.8564]
[1725963950695,3.7158,134.56,134.54,9.14]
[1725963954813,3.7158,134.56,134.53,12.8564]
[1725963955601,3.7154,134.57,134.53,12.8564]
[1725963955801,9.14,134.6,134.53,12.8564]
[1725963956311,3.7156,134.57,134.53,12.8564]
[1725963956903,9.14,134.58,134.53,9.14]
[1725963958013,3.7158,134.56,134.53,9.14]
[1725963958700,3.7154,134.57,134.53,9.14]
[1725963959104,3.7154,134.57,134.54,9.14]
[1725963959299,9.14,134.61,134.54,12.8559]
[1725963959504,1.11906571,134.6,134.54,12.8559]
[1725963959805,3.7152,134.58,134.56,9.14]
[1725963960308,124.19926432,134.68,134.57,9.14]
[1725963960504,9.14,134.63,134.57,9.14]
[1725963960707,1.11940362,134.62,134.57,9.14]
[1725963960911,3.7146,134.6,134.57,9.14]
[1725963961103,9.14,134.63,134.57,12.8552]
[1725963961310,9.14,134.63,134.57,9.14]
[1725963961505,3.7145,134.6,134.57,9.14]
[1725963963112,3.7143,134.61,134.57,12.8552]
[1725963963307,3.7143,134.61,134.59,9.14]
[1725963969824,3.7145,134.6,134.57,9.14]
[1725963970210,3.7145,134.6,134.54,1.2983]
[1725963970211,9.14,134.61,134.55,9.14]
[1725963970417,9.14,134.61,134.55,12.8558]
[1725963971020,3.715,134.58,134.55,12.8558]
[1725963971218,9.14,134.61,134.55,9.14]
[1725963972923,3.7152,134.58,134.55,9.14]
[1725963973524,9.14,134.61,134.55,12.8557]
[1725963973725,9.14,134.61,134.55,3.7157]
[1725963973921,9.14,134.61,134.55,9.14]
[1725963974230,3.7152,134.58,134.55,9.14]
[1725963976127,3.7152,134.58,134.55,12.8558]
[1725963978525,3.7153,134.57,134.55,12.8558]
[1725963979724,3.7152,134.58,134.55,12.8558]
[1725963979919,3.7152,134.58,134.56,9.14]
[1725963980828,3.7149,134.59,134.57,9.14]
[1725963981722,3.7149,134.59,134.57,12.8552]
[1725963982233,9.14,134.63,134.57,12.8552]
[1725963982632,3.7146,134.6,134.57,12.8552]
[1725963983436,116.77456432,134.68,134.59,9.14]
[1725963983628,10.26026129,134.67,134.61,9.14]
[1725963983933,3.7134,134.64,134.61,9.14]
[1725963985131,116.77456432,134.68,134.61,9.14]
[1725963985334,1.3746,134.74,134.59,3.62484204]
[1725963985335,3.713,134.66,134.62,9.14]
[1725963985535,9.14,134.69,134.62,9.14]
[1725963985728,4.83233244,134.68,134.64,9.14]
[1725963985932,3.7123,134.68,134.64,9.14]
[1725963986135,1.3162,134.73,134.64,9.14]
[1725963986136,1.3162,134.73,134.65,3.7131]
[1725963986326,3.7122,134.69,134.65,12.8531]
[1725963987338,9.14,134.71,134.65,12.8531]
[1725963987538,1.12022302,134.7,134.65,12.8531]
[1725963988137,3.7121,134.69,134.65,12.8531]
[1725963988643,3.7121,134.69,134.66,3.7127]
[1725963988838,3.7118,134.7,134.66,3.7127]
[1725963989143,9.14,134.71,134.66,3.7128]
[1725963989337,1.12001112,134.69,134.66,3.7128]
[1725963990142,4.83201112,134.69,134.66,3.7128]
[1725963990337,1.12001112,134.69,134.65,12.853]
[1725963990542,1.12001112,134.69,134.65,9.14]
[1725963990938,9.14,134.67,134.6,2.6606]
[1725963991135,9.14,134.67,134.61,9.14]
[1725963991337,1.12001112,134.69,134.61,9.14]
[1725963991338,9.14,134.66,134.61,9.14]
[1725963991535,3.7137,134.63,134.6,2.6606]
[1725963991840,9.14,134.65,134.6,2.6606]
[1725963992048,9.14,134.65,134.6,1.3526]
[1725963992243,9.14,134.63,134.58,14.2419]
[1725963992442,9.14,134.63,134.58,1.387]
[1725963992640,3.7144,134.61,134.58,1.387]
[1725963993343,9.14,134.63,134.58,1.387]
[1725963993646,9.14,134.63,134.58,5.102]
[1725963995742,3.714,134.62,134.58,5.102]
[1725963996649,3.7142,134.61,134.58,5.102]
[1725963998748,3.714,134.62,134.59,3.7146]
[1725963999247,3.7142,134.61,134.59,3.7146]
[1725964000845,9.14,134.66,134.6,12.8544]
[1725964001152,3.7138,134.63,134.6,12.8544]
[1725964001738,3.77294685,134.68,134.62,9.14]
[1725964001946,1.11973516,134.67,134.62,9.14]
[1725964002538,3.713,134.66,134.62,12.8539]
[1725964002743,12.91294685,134.68,134.62,12.8539]
[1725964003151,3.713,134.66,134.63,3.7136]
[1725964004341,3.713,134.66,134.62,12.8538]
[1725964005146,3.7131,134.65,134.62,12.8538]
[1725964006250,3.7129,134.66,134.62,12.8538]
[1725964011758,3.7125,134.68,134.65,3.7131]
[1725964011958,9.14,134.7,134.63,9.14]
[1725964012157,1.11990252,134.69,134.63,9.14]
[1725964012358,3.7128,134.67,134.63,12.8535]
[1725964012859,12.76498142,134.7,134.63,12.8535]
[1725964013059,1.11991036,134.69,134.63,12.8535]
[1725964014053,3.7127,134.67,134.63,12.8535]
[1725964014354,9.14,134.69,134.62,12.8538]
[1725964015259,3.713,134.66,134.63,3.7136]
[1725964015656,9.14,134.69,134.62,9.14]
[1725964016049,3.7128,134.67,134.63,3.7135]
[1725964017848,3.7128,134.67,134.63,9.14]
[1725964018261,9.14,134.69,134.63,9.14]
[1725964018262,3.7124,134.68,134.63,9.14]
[1725964018465,1.11988481,134.67,134.64,3.7131]
[1725964019164,1.11988481,134.67,134.65,3.713]
[1725964020164,1.11988481,134.67,134.65,12.853]
[1725964020967,1.11988481,134.67,134.65,9.14]
[1725964021167,3.7124,134.68,134.65,9.14]
[1725964021357,1.11978165,134.67,134.65,9.14]
[1725964021557,1.11978165,134.67,134.65,12.853]
[1725964021860,9.14,134.7,134.65,9.14]
[1725964022159,1.11988785,134.69,134.65,9.14]
[1725964022364,3.7124,134.68,134.65,9.14]
[1725964022559,9.14,134.7,134.65,9.14]
[1725964022762,10.25985898,134.69,134.63,9.14]
[1725964023067,10.25985898,134.68,134.62,9.14]
[1725964023370,9.14,134.68,134.62,9.14]
[1725964023562,3.713,134.66,134.62,12.8537]
[1725964024363,3.7127,134.67,134.63,3.7136]
[1725964024867,9.14,134.68,134.63,3.7136]
[1725964025166,3.713,134.66,134.62,12.8538]
[1725964025671,9.14,134.68,134.62,9.14]
[1725964026060,3.7128,134.67,134.63,3.7135]
[1725964026364,3.7128,134.67,134.63,12.8535]
[1725964026562,3.7124,134.68,134.65,9.14]
[1725964027761,3.7122,134.69,134.66,9.14]
[1725964028670,9.14,134.72,134.66,12.8528]
[1725964028870,1.11922223,134.71,134.66,12.8528]
[1725964029068,9.14,134.72,134.66,12.8528]
[1725964029069,3.712,134.7,134.66,12.8528]
[1725964029265,9.14,134.72,134.66,12.8528]
[1725964029565,1.11927172,134.71,134.66,12.8528]
[1725964030065,3.712,134.69,134.66,12.8528]
[1725964032967,3.7123,134.68,134.66,9.14]
[1725964033273,6.36806538,134.74,134.65,9.14]
[1725964033274,9.14,134.71,134.65,9.14]
[1725964033463,1.11939699,134.7,134.65,9.14]
[1725964033866,3.7124,134.68,134.65,9.14]
[1725964034471,9.14,134.69,134.6,1.337]
[1725964034671,9.14,134.68,134.62,9.14]
[1725964035174,9.14,134.68,134.62,12.8538]
[1725964035571,3.713,134.66,134.62,12.8538]
[1725964036067,3.713,134.66,134.63,12.8536]
[1725964037668,13.78966538,134.74,134.65,9.14]
[1725964037669,3.7127,134.67,134.65,9.14]
[1725964038974,3.7124,134.68,134.65,9.14]
[1725964041175,3.7122,134.69,134.66,9.14]
[1725964041785,3.7123,134.68,134.66,9.14]
[1725964043179,3.7123,134.68,134.65,9.14]
[1725964044785,3.7123,134.68,134.65,12.853]
[1725964045285,3.7123,134.68,134.65,9.14]
[1725964045780,3.7123,134.68,134.65,12.8529]
[1725964046179,3.7121,134.69,134.65,9.14]
[1725964046486,3.7121,134.69,134.66,3.7128]
[1725964048182,3.7121,134.69,134.65,12.8529]
[1725964050884,3.7121,134.69,134.66,9.14]
[1725964051087,3.7121,134.69,134.66,11.8202]
[1725964056595,3.7119,134.7,134.67,9.14]
[1725964058294,3.7119,134.7,134.67,12.8525]
[1725964059795,4.99076538,134.74,134.68,3.7123]
[1725964059796,3.7116,134.71,134.68,3.7123]
[1725964060099,1.4043,134.77,134.7,9.14]
[1725964060297,9.14,134.77,134.72,9.14]
[1725964060493,3.7105,134.75,134.72,9.14]
[1725964061604,225.0,134.87,134.74,9.14]
[1725964061899,41.13850455,134.91,134.73,9.14]
[1725964061900,9.14,134.78,134.73,9.14]
[1725964062104,12.93694766,134.78,134.73,9.14]
[1725964062298,9.14,134.79,134.67,7.55149474]
[1725964062505,9.14,134.78,134.71,9.14]
[1725964062797,3.7099,134.77,134.72,3.7109]
[1725964063198,3.7099,134.77,134.71,9.14]
[1725964064097,3.7099,134.77,134.73,3.7109]
[1725964064499,12.8496,134.78,134.73,3.7109]
[1725964065605,12.8496,134.78,134.73,12.8509]
[1725964067399,12.8496,134.78,134.74,3.7106]
[1725964067608,16.56988908,134.79,134.74,3.7106]
[1725964067796,12.8494,134.79,134.74,3.7106]
[1725964067999,12.8494,134.79,134.74,9.14]
[1725964068507,3.7097,134.78,134.73,9.14]
[1725964069304,3.7097,134.78,134.74,3.7105]
[1725964076606,12.77983963,134.79,134.75,3.7102]
[1725964076607,3.7094,134.79,134.75,3.7102]
[1725964077206,1.384,134.81,134.76,9.14]
[1725964077405,1.384,134.81,134.77,9.14]
[1725964077605,1.4046,134.82,134.77,9.14]
[1725964077808,3.7089,134.81,134.77,12.8496]
[1725964078304,3.709,134.8,134.77,12.8496]
[1725964078712,3.709,134.8,134.77,9.14]
[1725964080205,3.709,134.8,134.77,12.8497]
[1725964080805,3.709,134.8,134.77,3.7097]
[1725964081011,3.7093,134.79,134.75,9.14]
[1725964081210,9.14,134.81,134.76,9.14]
[1725964081417,3.7091,134.8,134.76,12.8498]
[1725964081920,3.7091,134.8,134.72,1.3691]
[1725964081921,3.7088,134.81,134.77,12.8496]
[1725964082122,1.4046,134.82,134.77,12.8496]
[1725964082521,3.7088,134.81,134.77,12.8496]
[1725964082912,3.7088,134.81,134.78,3.7095]
[1725964083716,9.14,134.83,134.78,3.7095]
[1725964083916,3.7086,134.82,134.78,12.8495]
[1725964084921,3.7087,134.81,134.78,12.8495]
[1725964086616,3.7077,134.85,134.8,9.14]
[1725964086817,3.7077,134.85,134.84,9.14]
[1725964087014,3.7075,134.86,134.84,9.14]
[1725964087225,1.11935855,134.85,134.84,9.14]
[1725964087723,3.7068,134.88,134.84,12.8479]
[1725964087921,3.7068,134.88,134.85,9.14]
[1725964088227,6.26005895,134.91,134.85,9.14]
[1725964088228,4.82654242,134.87,134.85,9.14]
[1725964088836,3.7071,134.87,134.85,9.14]
[1725964089927,3.7074,134.86,134.84,9.14]
[1725964090530,3.7074,134.86,134.82,12.8483]
[1725964096220,3.7076,134.85,134.82,12.8483]
[1725964098628,3.7079,134.84,134.81,3.7086]
[1725964098828,3.7079,134.84,134.82,9.14]
[1725964100520,9.14,134.83,134.8,1.3115]
[1725964100736,9.14,134.82,134.76,9.14]
[1725964100925,12.8215579,134.82,134.76,9.14]
[1725964101136,3.7094,134.79,134.76,9.14]
[1725964101636,12.8215579,134.82,134.76,9.14]
[1725964102424,3.7097,134.78,134.75,10.4497]
[1725964102829,3.7094,134.79,134.75,5.0199]
[1725964103029,3.7094,134.79,134.76,9.14]
[1725964104838,3.7094,134.79,134.77,9.14]
[1725964105846,12.7797785,134.83,134.77,9.14]
[1725964106336,3.708,134.84,134.81,9.14]
[1725964106543,3.708,134.84,134.82,9.14]
[1725964107627,3.7077,134.85,134.82,9.14]
[1725964108244,3.7077,134.85,134.82,12.8484]
[1725964108436,3.7077,134.85,134.82,9.14]
[1725964108942,9.14,134.88,134.82,9.14]
[1725964109645,3.7077,134.85,134.82,9.14]
[1725964110036,9.14,134.88,134.82,12.8484]
[1725964110231,3.7074,134.86,134.84,9.14]
[1725964110632,9.14,134.89,134.84,9.14]
[1725964110936,3.7076,134.85,134.84,9.14]
[1725964115150,3.7076,134.85,134.81,6.4473]
[1725964115451,3.7076,134.85,134.82,9.14]
[1725964115635,3.7081,134.83,134.82,9.14]
[1725964115840,9.14,134.87,134.82,9.14]
[1725964116040,1.11923573,134.86,134.82,9.14]
[1725964116444,1.11923573,134.86,134.81,1.3898]
[1725964116445,9.14,134.85,134.81,1.3898]
[1725964116749,10.25923573,134.84,134.81,1.3898]
[1725964116938,9.14,134.84,134.81,1.3898]
[1725964117341,3.7083,134.83,134.81,1.3898]
[1725964123045,2.6385,134.9,134.82,9.14]
[1725964123342,1.11886972,134.89,134.84,9.14]
[1725964123656,3.7072,134.87,134.84,9.14]
[1725964124242,3.7074,134.86,134.84,9.14]
[1725964124546,9.14,134.89,134.83,9.14]
[1725964124740,1.11909001,134.88,134.83,9.14]
[1725964124938,3.7075,134.86,134.83,9.14]
[1725964125340,3.7078,134.85,134.83,9.14]
[1725964125846,3.7077,134.85,134.83,9.14]
[1725964126646,1.2783,134.9,134.83,9.14]
[1725964126855,10.25977639,134.89,134.83,9.14]
[1725964127048,9.14,134.89,134.83,9.14]
[1725964127443,9.14,134.89,134.83,12.8481]
[1725964127648,9.14,134.89,134.84,9.14]
[1725964128153,3.7072,134.87,134.84,9.14]
[1725964129448,7.8472,134.89,134.84,9.14]
[1725964130355,3.7069,134.88,134.84,12.8477]
[1725964131656,3.7069,134.88,134.85,12.8476]
[1725964132154,3.7069,134.88,134.85,9.14]
[1725964133651,3.7071,134.87,134.84,9.14]
[1725964134257,9.14,134.89,134.84,9.14]
[1725964134459,9.14,134.89,134.83,9.14]
[1725964135154,9.14,134.87,134.82,9.14]
[1725964135346,9.14,134.87,134.81,4.016]
[1725964135550,9.14,134.85,134.81,1.3898]
[1725964135748,10.0842,134.9,134.81,1.3898]
[1725964135946,9.14,134.86,134.81,1.3898]
[1725964136158,9.14,134.86,134.81,10.5298]
[1725964136159,3.7079,134.84,134.81,10.5298]
[1725964136360,9.14,134.86,134.81,10.5298]
[1725964136865,3.7082,134.83,134.81,10.5298]
[1725964137254,9.14,134.86,134.81,10.5298]
[1725964138057,3.708,134.84,134.81,10.5298]
[1725964139463,3.7077,134.85,134.81,14.2385]
[1725964139852,9.14,134.87,134.81,14.2385]
[1725964140263,3.7079,134.84,134.81,10.5298]
[1725964141856,2.6713,134.9,134.83,9.14]
[1725964142058,10.25980034,134.89,134.84,9.14]
[1725964142254,1.11980034,134.88,134.84,9.14]
[1725964142653,3.7075,134.86,134.84,9.14]
[1725964142853,11.8113,134.9,134.84,9.14]
[1725964143065,1.11988383,134.89,134.84,9.14]
[1725964143263,3.7073,134.87,134.84,9.14]
[1725964143663,1.2783,134.9,134.85,9.14]
[1725964143867,3.7069,134.88,134.85,9.14]
[1725964144064,12.77025895,134.91,134.85,9.14]
[1725964144270,1.1199746,134.9,134.85,9.14]
[1725964144467,3.7067,134.89,134.85,12.8474]
[1725964144669,12.77025895,134.91,134.85,9.14]
[1725964144967,1.11998246,134.9,134.85,9.14]
[1725964145163,3.7068,134.88,134.85,9.14]
[1725964146064,3.7068,134.88,134.84,3.7077]
[1725964151169,3.7071,134.87,134.83,17.938]
[1725964151874,3.7071,134.87,134.83,3.708]
[1725964152267,3.7071,134.87,134.84,3.7078]
[1725964153764,3.7071,134.87,134.83,3.708]
[1725964154169,3.7073,134.86,134.83,3.708]
[1725964154561,3.7073,134.86,134.82,14.23]
[1725964154562,3.79813042,134.89,134.82,14.23]
[1725964154767,3.7076,134.85,134.82,17.9383]
[1725964155363,3.7074,134.86,134.83,3.7081]
[1725964155967,3.7074,134.86,134.84,3.7078]
[1725964156173,15.606,134.93,134.84,14.23]
[1725964156369,1.11905565,134.92,134.86,3.7073]
[1725964156770,3.7067,134.89,134.86,3.7073]
[1725964156973,1.11905565,134.88,134.86,3.7073]
[1725964157172,1.11905565,134.88,134.85,3.7075]
[1725964158266,4.82585565,134.88,134.85,3.7075]
[1725964158465,3.7068,134.88,134.85,3.7075]
[1725964159179,3.7068,134.88,134.86,1.3557]
[1725964160673,3.707,134.87,134.86,1.3557]
[1725964161377,3.7069,134.88,134.86,1.3557]
[1725964164675,3.707,134.87,134.86,1.3557]
[1725964164878,3.707,134.87,134.81,2.6668]
[1725964164879,14.23,134.91,134.82,14.23]
[1725964165177,14.23,134.91,134.82,1.274]
[1725964165178,1.1192859,134.9,134.82,1.274]
[1725964165380,3.7079,134.85,134.82,1.274]
[1725964165777,14.23,134.91,134.82,1.274]
[1725964166178,1.11926479,134.9,134.82,1.274]
[1725964168284,9.11,134.89,134.83,9.11]
[1725964168587,3.6772997,134.93,134.85,9.11]
[1725964168883,3.6772997,134.93,134.82,1.274]
[1725964168884,10.22931979,134.92,134.86,9.11]
[1725964169187,3.7067,134.89,134.86,9.11]
[1725964169489,3.707,134.88,134.84,9.11]
[1725964169883,9.11,134.88,134.82,1.274]
[1725964170074,9.11,134.87,134.82,1.274]
[1725964170380,3.7077,134.85,134.82,1.274]
[1725964171182,3.7077,134.85,134.82,10.384]
[1725964175389,9.11,134.88,134.82,10.384]
[1725964175390,3.7074,134.86,134.83,9.11]
[1725964175686,9.11,134.88,134.82,10.384]
[1725964175990,3.7079,134.84,134.82,10.384]
[1725964176379,3.7077,134.85,134.82,10.384]
[1725964176589,9.11,134.87,134.82,10.384]
[1725964177094,3.7078,134.85,134.82,10.384]
[1725964179788,3.7075,134.86,134.82,14.0924]
[1725964180178,9.11,134.87,134.82,10.384]
[1725964180793,3.7077,134.85,134.82,10.384]
[1725964183399,3.7079,134.84,134.82,10.384]
[1725964186999,1.3152,134.9,134.83,9.11]
[1725964187000,10.4252,134.9,134.83,9.11]
[1725964187190,1.12036497,134.89,134.85,9.11]
[1725964188102,3.7069,134.88,134.85,9.11]
[1725964188301,10.4252,134.9,134.85,9.11]
[1725964188497,1.12040611,134.89,134.85,9.11]
[1725964188693,3.7068,134.88,134.85,9.11]
[1725964189398,3.7071,134.87,134.85,9.11]
[1725964191898,3.7071,134.87,134.83,12.818]
[1725964192094,3.7075,134.86,134.83,9.11]
[1725964192306,3.7075,134.86,134.82,6.2704]
[1725964192502,3.7075,134.86,134.83,9.11]
[1725964192696,3.7077,134.85,134.82,10.384]
[1725964194200,3.7077,134.85,134.82,1.274]
[1725964194601,3.7081,134.84,134.82,1.274]
[1725964195107,3.7081,134.83,134.8,9.11]
[1725964195606,3.7081,134.83,134.8,12.8189]
[1725964195998,3.708,134.84,134.81,9.11]
[1725964198105,3.7082,134.83,134.8,3.7088]
[1725964198317,3.7082,134.83,134.8,9.11]
[1725964198607,9.11,134.85,134.79,9.11]
[1725964198804,3.7086,134.82,134.79,12.819]
[1725964199008,9.11,134.85,134.79,9.11]
[1725964199409,9.11,134.85,134.81,12.8187]
[1725964199410,3.77263282,134.85,134.81,12.8187]
[1725964199711,12.73199465,134.86,134.81,12.8187]
[1725964199913,3.708,134.84,134.82,9.11]
[1725964200408,9.11,134.87,134.82,9.11]
[1725964201001,3.7077,134.85,134.82,9.11]
[1725964201403,9.11,134.87,134.82,9.11]
[1725964201404,3.7079,134.84,134.82,9.11]
[1725964201613,9.11,134.87,134.82,9.11]
[1725964202905,3.7078,134.85,134.82,9.11]
[1725964204510,3.7079,134.84,134.82,9.11]
[1725964204808,9.11,134.87,134.82,9.11]
[1725964205210,3.7078,134.85,134.82,9.11]
[1725964205813,3.7079,134.84,134.82,9.11]
[1725964206504,3.7077,134.85,134.82,9.11]
[1725964208305,3.7074,134.86,134.82,12.8184]